bitfinex/quotes_BTCUSD_20240823
["timestamp","ask_amount","ask_price","bid_price","bid_amount"]
[1724428976305,1.32650824,61561.0,61560.0,0.1862]
[1724428976530,1.42650824,61561.0,61560.0,0.1862]
[1724428976758,1.45198968,61561.0,61560.0,0.1862]
[1724428977675,1.57342289,61561.0,61560.0,0.1862]
[1724428977895,1.46598968,61561.0,61560.0,0.1872]
[1724428978118,1.46598968,61561.0,61556.0,0.3213]
[1724428978119,0.812215,61560.0,61556.0,0.5087]
[1724428978358,1.42652624,61560.0,61556.0,0.5087]
[1724428980161,1.45452624,61560.0,61556.0,0.5087]
[1724428980391,1.44052624,61560.0,61553.0,0.00012]
[1724428980617,1.42652624,61560.0,61553.0,0.00012]
[1724428980849,1.44052624,61560.0,61553.0,0.00012]
[1724428981480,1.45452624,61560.0,61553.0,0.00012]
[1724428981975,1.45452624,61560.0,61559.0,0.31563]
[1724428981976,1.12964024,61560.0,61559.0,0.31563]
[1724428982216,0.76219565,61560.0,61559.0,0.50943]
[1724428982443,1.08707036,61560.0,61559.0,0.50943]
[1724428982724,0.93763726,61560.0,61559.0,0.50943]
[1724428983185,0.95163726,61560.0,61559.0,0.50943]
[1724428983449,0.96563726,61560.0,61559.0,0.50943]
[1724428983701,1.11564024,61560.0,61559.0,0.50943]
[1724428984110,1.44052624,61560.0,61559.0,0.50943]
[1724428984341,1.12964024,61560.0,61559.0,0.50943]
[1724428984568,1.27537356,61560.0,61559.0,0.50943]
[1724428984782,1.12964024,61560.0,61559.0,0.50943]
[1724428985271,2.18391224,61560.0,61559.0,0.00823]
[1724428985531,2.20691224,61560.0,61559.0,0.00823]
[1724428986028,2.17891224,61560.0,61559.0,0.00740701]
[1724428986257,1.77941224,61560.0,61559.0,0.00840701]
[1724428986479,1.80241224,61560.0,61559.0,0.00840701]
[1724428986712,1.45452624,61560.0,61559.0,0.00840701]
[1724428986940,1.10164024,61560.0,61559.0,0.53170701]
[1724428987165,1.27556113,61560.0,61559.0,0.53270701]
[1724428987388,0.79075424,61560.0,61559.0,0.53270701]
[1724428987608,0.79075424,61560.0,61559.0,0.53170701]
[1724428987609,1.11564024,61560.0,61559.0,0.53170701]
[1724428987872,0.13942226,61560.0,61559.0,0.53170701]
[1724428988104,0.20186526,61560.0,61559.0,0.53170701]
[1724428988324,0.6483416,61560.0,61559.0,0.53170701]
[1724428988567,0.20186526,61560.0,61559.0,0.53170701]
[1724428988795,0.32345545,61560.0,61559.0,0.53170701]
[1724428989014,0.12269247,61560.0,61559.0,0.53170701]
[1724428989240,0.13669247,61560.0,61559.0,0.53270701]
[1724428989709,0.1112697,61560.0,61559.0,0.53270701]
[1724428989959,0.11237809,61560.0,61559.0,0.50960701]
[1724428990187,0.04863145,61560.0,61559.0,0.51160701]
[1724428990483,0.05863145,61560.0,61559.0,0.51160701]
[1724428990707,0.05963145,61560.0,61559.0,0.51260701]
[1724428990932,0.05963145,61560.0,61559.0,0.56386771]
[1724428990933,0.015,61560.0,61559.0,0.56386771]
[1724428991157,0.004,61560.0,61559.0,0.56286771]
[1724428991640,0.0972544,61570.0,61559.0,0.56286771]
[1724428991641,0.0486272,61574.0,61573.0,0.001]
[1724428991870,0.0486272,61575.0,61574.0,0.5017]
[1724428992563,0.0486272,61575.0,61574.0,0.5007]
[1724428992791,0.07617971,61576.0,61574.0,0.5007]
[1724428993019,0.0729408,61576.0,61574.0,0.5007]
[1724428993240,0.005,61575.0,61574.0,0.5007]
[1724428993507,0.167403,61575.0,61574.0,0.5017]
[1724428993798,0.05360769,61575.0,61574.0,0.5017]
[1724428994032,0.21101069,61575.0,61574.0,0.5007]
[1724428994316,0.04860769,61575.0,61574.0,0.5017]
[1724428994505,1.33324842,61575.0,61574.0,0.001]
[1724428994758,2.2208342,61575.0,61574.0,0.001]
[1724428994980,2.407951,61575.0,61574.0,0.001]
[1724428995223,2.407951,61575.0,61564.0,0.3091]
[1724428995224,2.3655342,61575.0,61564.0,0.3091]
[1724428995455,1.137101,61560.0,61559.0,0.00740701]
[1724428995717,1.73799134,61560.0,61559.0,0.00740701]
[1724428995959,1.55897117,61560.0,61559.0,0.00740701]
[1724428996182,1.10163942,61560.0,61559.0,0.00740701]
[1724428996410,1.22318464,61560.0,61559.0,0.00740701]
[1724428996638,0.62675044,61560.0,61559.0,0.00740701]
[1724428996872,0.78777438,61560.0,61559.0,0.00740701]
[1724428997327,0.68023231,61560.0,61559.0,0.00740701]
[1724428997561,0.75977361,61560.0,61559.0,0.00740701]
[1724428997784,0.63823231,61560.0,61559.0,0.00740701]
[1724428998517,0.75976976,61560.0,61559.0,0.00740701]
[1724428998738,0.75976976,61560.0,61559.0,0.31960701]
[1724428998739,0.41057191,61560.0,61559.0,0.31960701]
[1724428998963,0.74945791,61560.0,61559.0,0.31960701]
[1724428999184,0.74945517,61560.0,61559.0,0.31960701]
[1724428999413,0.27613035,61560.0,61559.0,0.31960701]
[1724428999660,0.12640327,61560.0,61559.0,0.50540701]
[1724428999880,0.03948187,61560.0,61559.0,0.50640701]
[1724429000320,0.05348187,61560.0,61559.0,0.50640701]
[1724429000858,0.02548187,61560.0,61559.0,0.55924771]
[1724429001064,0.03948187,61560.0,61559.0,0.55924771]
[1724429001332,0.09722704,61569.0,61559.0,0.55924771]
[1724429001333,0.0486145,61569.0,61567.0,0.5105]
[1724429001542,0.0486145,61569.0,61568.0,0.37595]
[1724429001756,0.2851153,61573.0,61568.0,0.37595]
[1724429001757,0.0486145,61570.0,61568.0,0.37595]
[1724429001974,0.0486145,61569.0,61568.0,0.3247]
[1724429002187,0.25963804,61572.0,61568.0,0.3247]
[1724429002188,0.0486145,61570.0,61568.0,0.3247]
[1724429002642,0.0729214,61572.0,61570.0,0.001]
[1724429002884,0.07408631,61573.0,61572.0,0.3052]
[1724429003324,0.07408631,61573.0,61572.0,0.3022]
[1724429003325,0.19112617,61573.0,61572.0,0.3022]
[1724429003549,0.26080018,61573.0,61572.0,0.3022]
[1724429003763,0.58561718,61573.0,61572.0,0.3022]
[1724429004209,0.91202916,61573.0,61571.0,0.1863]
[1724429004434,0.162419,61569.0,61568.0,0.3139]
[1724429004698,1.03473692,61569.0,61568.0,0.3139]
[1724429004932,0.93751969,61569.0,61568.0,0.3139]
[1724429005387,0.912095,61569.0,61568.0,0.3139]
[1724429005619,0.68559221,61569.0,61568.0,0.3139]
[1724429005842,0.33532836,61569.0,61568.0,0.3139]
[1724429006070,0.07290936,61569.0,61568.0,0.3169]
[1724429006301,0.009,61569.0,61568.0,0.3169]
[1724429006519,0.2200243,61569.0,61568.0,0.3169]
[1724429006744,0.009,61569.0,61568.0,0.3169]
[1724429006967,0.05760343,61569.0,61568.0,0.3169]
[1724429007682,0.017,61569.0,61568.0,0.5023]
[1724429007904,0.017,61569.0,61568.0,0.55263]
[1724429008133,0.017,61569.0,61568.0,0.55463]
[1724429009487,0.02547926,61573.0,61571.0,0.003]
[1724429009721,0.02547926,61573.0,61572.0,0.356613]
[1724429009933,0.02547926,61573.0,61572.0,0.3024]
[1724429010157,0.56130769,61573.0,61572.0,0.3024]
[1724429010386,0.18788726,61573.0,61572.0,0.3024]
[1724429010609,0.02547926,61573.0,61572.0,0.3024]
[1724429010835,0.18788726,61573.0,61572.0,0.3024]
[1724429011318,0.18788726,61573.0,61572.0,0.3054]
[1724429011319,0.09838862,61573.0,61572.0,0.3054]
[1724429011552,0.09938862,61573.0,61572.0,0.35438]
[1724429011774,0.07506968,61573.0,61572.0,0.35438]
[1724429011992,0.08406968,61573.0,61572.0,0.3054]
[1724429012225,0.08406968,61573.0,61572.0,0.4985]
[1724429012493,0.03547926,61573.0,61572.0,0.5005]
[1724429012718,0.02647926,61573.0,61572.0,0.66450298]
[1724429012959,0.009,61573.0,61572.0,0.73152067]
[1724429013185,0.017,61573.0,61572.0,0.73252067]
[1724429013403,0.008,61573.0,61572.0,0.73252067]
[1724429013901,0.02547205,61582.0,61581.0,0.4992]
[1724429014138,0.02547205,61582.0,61581.0,0.5012]
[1724429014599,0.02547205,61582.0,61581.0,0.5022]
[1724429015058,0.02547205,61582.0,61581.0,0.4982]
[1724429015528,0.03947205,61582.0,61581.0,0.4982]
[1724429016243,0.02547205,61582.0,61581.0,0.5022]
[1724429016475,0.03847205,61582.0,61581.0,0.71642298]
[1724429016706,0.02547205,61582.0,61581.0,0.87880998]
[1724429016930,0.162343,61598.0,61597.0,0.4925]
[1724429017168,0.65463154,61599.0,61598.0,0.001]
[1724429017411,0.65463154,61599.0,61597.0,0.4925]
[1724429017412,0.32468,61599.0,61597.0,0.4925]
[1724429017651,0.162342,61598.0,61597.0,0.4925]
[1724429018351,0.18780521,61599.0,61597.0,0.49536112]
[1724429018577,0.02546521,61599.0,61598.0,0.04953611]
[1724429018810,0.03946521,61599.0,61598.0,0.04953611]
[1724429019056,0.02546521,61599.0,61598.0,0.05439723]
[1724429019297,0.02546521,61599.0,61598.0,0.36639723]
[1724429019769,0.03846521,61599.0,61598.0,0.36639723]
[1724429019993,0.05246521,61599.0,61598.0,0.36639723]
[1724429020244,0.03946521,61599.0,61598.0,0.36639723]
[1724429020466,0.05246521,61599.0,61598.0,0.36739723]
[1724429020699,0.05246521,61599.0,61598.0,0.36715187]
[1724429021134,0.05246521,61599.0,61598.0,0.36329075]
[1724429021613,0.05246521,61599.0,61598.0,0.36515187]
[1724429021843,0.05246521,61599.0,61598.0,0.36715187]
[1724429022993,0.05246521,61599.0,61598.0,0.313]
[1724429023225,0.05246521,61599.0,61598.0,0.31586112]
[1724429023447,0.03946521,61599.0,61598.0,0.313]
[1724429023662,0.03946521,61599.0,61598.0,0.31486112]
[1724429023915,0.04946521,61599.0,61598.0,0.314]
[1724429024149,0.04946521,61599.0,61598.0,0.001]
[1724429024150,0.86116521,61599.0,61598.0,0.001]
[1724429024385,0.52248521,61599.0,61598.0,0.00085977]
[1724429025501,0.84716521,61599.0,61598.0,0.00085977]
[1724429025728,0.53448521,61599.0,61598.0,0.00085977]
[1724429026170,0.85916521,61599.0,61598.0,0.00085977]
[1724429026420,1.48388677,61599.0,61598.0,0.00085977]
[1724429026646,2.28529723,61599.0,61598.0,0.00085977]
[1724429026868,2.3580063,61599.0,61598.0,0.00085977]
[1724429027103,2.68253993,61599.0,61598.0,0.00085977]
[1724429027330,2.73129789,61599.0,61598.0,0.00085977]
[1724429027556,0.487131,61585.0,61582.0,0.309]
[1724429027813,0.487131,61585.0,61583.0,0.00086112]
[1724429027814,0.162377,61585.0,61583.0,0.00086112]
[1724429028060,0.487131,61585.0,61582.0,0.309]
[1724429028298,0.5126016,61585.0,61582.0,0.309]
[1724429028749,0.5126016,61585.0,61584.0,0.00144753]
[1724429028999,0.5126016,61585.0,61584.0,0.00058641]
[1724429029688,0.0394706,61585.0,61584.0,0.00058641]
[1724429029912,0.0534706,61585.0,61584.0,0.00058641]
[1724429030387,0.0534706,61585.0,61584.0,0.31048641]
[1724429030614,0.0534706,61585.0,61584.0,0.30948641]
[1724429030851,0.0254706,61585.0,61584.0,0.30948641]
[1724429031071,0.1878476,61585.0,61584.0,0.30948641]
[1724429031308,0.0254706,61585.0,61584.0,0.30948641]
[1724429032015,0.0254706,61585.0,61584.0,0.51004753]
[1724429032265,0.0254706,61585.0,61584.0,0.51204753]
[1724429032266,0.0454706,61585.0,61584.0,0.51204753]
[1724429032483,0.0454706,61585.0,61584.0,0.51004753]
[1724429032721,0.0454706,61585.0,61584.0,0.50818641]
[1724429033002,0.0454706,61585.0,61584.0,0.50718641]
[1724429033227,0.2078476,61585.0,61584.0,0.50718641]
[1724429033461,0.8573556,61585.0,61584.0,0.00058641]
[1724429034841,1.34611258,61585.0,61584.0,0.00058641]
[1724429035061,1.66761258,61585.0,61584.0,0.00058641]
[1724429035279,1.64761258,61585.0,61584.0,0.00058641]
[1724429035530,1.04077725,61585.0,61584.0,0.00058641]
[1724429035744,1.05277725,61585.0,61584.0,0.00058641]
[1724429035959,1.03877725,61585.0,61584.0,0.00058641]
[1724429036202,0.162389,61581.0,61572.0,0.5137]
[1724429036431,0.324781,61580.0,61572.0,0.5137]
[1724429036669,0.162394,61579.0,61572.0,0.5137]
[1724429037365,0.02547287,61578.0,61572.0,0.5137]
[1724429039416,0.03447287,61578.0,61572.0,0.5137]
[1724429039862,0.04147287,61578.0,61572.0,0.5137]
[1724429040109,0.04147287,61578.0,61575.0,0.002]
[1724429040339,0.04147287,61578.0,61577.0,0.3192]
[1724429040561,0.04147287,61578.0,61577.0,0.3202]
[1724429041012,0.04147287,61578.0,61577.0,0.507]
[1724429041709,0.03247287,61578.0,61577.0,0.507]
[1724429041949,0.04147287,61578.0,61577.0,0.5577]
[1724429042168,0.02547287,61578.0,61577.0,0.5577]
[1724429042629,0.04147287,61578.0,61577.0,0.5577]
[1724429043079,0.03447287,61578.0,61577.0,0.507]
[1724429043340,0.03247287,61578.0,61577.0,0.507]
[1724429043565,0.03247287,61578.0,61577.0,0.506]
[1724429043811,0.03247287,61578.0,61577.0,0.507]
[1724429044038,0.03247287,61578.0,61577.0,0.505]
[1724429044039,0.02547287,61578.0,61577.0,0.505]
[1724429044264,0.18786787,61578.0,61577.0,0.3182]
[1724429044509,0.18786787,61578.0,61562.0,0.1838906]
[1724429044510,0.162405,61575.0,61569.0,0.3025]
[1724429044731,0.50897585,61578.0,61569.0,0.3025]
[1724429044732,0.162406,61574.0,61569.0,0.3025]
[1724429044962,0.51427185,61578.0,61569.0,0.3025]
[1724429044963,0.162409,61573.0,61569.0,0.3025]
[1724429045900,0.324796,61577.0,61569.0,0.3025]
[1724429046130,0.169406,61574.0,61569.0,0.3025]
[1724429046583,0.005,61573.0,61569.0,0.3025]
[1724429047037,0.00323891,61576.0,61569.0,0.3025]
[1724429047268,0.007,61573.0,61569.0,0.3025]
[1724429047980,0.007,61573.0,61569.0,0.35121]
[1724429048334,0.007,61573.0,61572.0,0.002]
[1724429048555,0.007,61573.0,61572.0,0.3238]
[1724429048763,0.006,61574.0,61572.0,0.3238]
[1724429048978,0.02547287,61578.0,61573.0,0.001]
[1724429049190,0.01,61576.0,61573.0,0.001]
[1724429049403,0.008,61576.0,61573.0,0.001]
[1724429049825,0.02547287,61578.0,61573.0,0.001]
[1724429050259,0.03547287,61578.0,61573.0,0.001]
[1724429050458,0.004,61576.0,61573.0,0.001]
[1724429050671,0.03547287,61578.0,61573.0,0.002]
[1724429050894,0.02547287,61578.0,61574.0,0.1995]
[1724429051763,0.02547287,61578.0,61577.0,0.002]
[1724429051976,0.02547287,61578.0,61577.0,0.5062]
[1724429052250,0.03147287,61578.0,61577.0,0.5062]
[1724429052489,0.03147287,61578.0,61577.0,0.67020298]
[1724429052710,0.04147287,61578.0,61577.0,0.67020298]
[1724429053132,0.03747287,61578.0,61577.0,0.94834278]
[1724429053345,0.03747287,61578.0,61577.0,0.78594478]
[1724429053561,0.02847287,61578.0,61577.0,0.78594478]
[1724429053776,0.03447287,61578.0,61577.0,0.78594478]
[1724429053981,0.03147287,61578.0,61577.0,0.78594478]
[1724429054219,0.03147287,61578.0,61577.0,0.94834278]
[1724429054429,0.03247287,61578.0,61577.0,0.78894478]
[1724429055072,0.03247287,61578.0,61577.0,0.5092]
[1724429055321,0.02647287,61578.0,61577.0,0.5092]
[1724429055529,0.02747287,61578.0,61577.0,0.5102]
[1724429055755,0.02747287,61578.0,61577.0,0.5122]
[1724429055993,0.02547287,61578.0,61577.0,0.5062]
[1724429056191,0.02547287,61578.0,61577.0,0.5102]
[1724429056405,0.02747287,61578.0,61577.0,0.5142]
[1724429056625,0.02747287,61578.0,61577.0,0.3133]
[1724429056835,0.02747287,61578.0,61573.0,0.1899]
[1724429056836,0.02647287,61578.0,61573.0,0.4968]
[1724429057052,0.02747287,61578.0,61577.0,0.004]
[1724429057297,0.19086787,61578.0,61577.0,0.008]
[1724429057509,0.05389162,61578.0,61577.0,0.008]
[1724429057720,0.07594524,61578.0,61577.0,0.004]
[1724429057947,0.02747287,61578.0,61577.0,0.004]
[1724429058180,0.10136397,61578.0,61577.0,0.004]
[1724429058665,0.09936397,61578.0,61573.0,0.4968]
[1724429058876,0.02541873,61577.0,61573.0,0.4968]
[1724429060171,0.02841873,61577.0,61573.0,0.4968]
[1724429060385,0.02541873,61576.0,61573.0,0.4968]
[1724429060609,0.004,61577.0,61573.0,0.4968]
[1724429062415,0.003,61577.0,61573.0,0.4968]
[1724429062661,0.003,61577.0,61573.0,0.002]
[1724429062895,0.02541836,61576.0,61573.0,0.002]
[1724429064211,0.02541836,61576.0,61574.0,0.329]
[1724429064422,0.02541836,61576.0,61575.0,0.002]
[1724429064633,0.003,61577.0,61576.0,0.002]
[1724429064885,0.003,61577.0,61576.0,0.331]
[1724429065061,0.02547287,61578.0,61576.0,0.331]
[1724429065062,0.02547287,61578.0,61577.0,0.516]
[1724429065284,0.02547287,61578.0,61577.0,0.5491]
[1724429065518,0.02547287,61578.0,61577.0,0.711498]
[1724429065743,0.02547287,61578.0,61577.0,0.5491]
[1724429066198,0.02547287,61578.0,61577.0,0.71310298]
[1724429066644,0.02547287,61578.0,61577.0,0.71610298]
[1724429066893,0.02547287,61578.0,61577.0,0.87850098]
[1724429067121,0.02647287,61578.0,61577.0,0.71910298]
[1724429067350,0.02647287,61578.0,61577.0,0.88150098]
[1724429068029,0.02647287,61578.0,61577.0,0.71910298]
[1724429068668,0.02647287,61578.0,61577.0,0.88150098]
[1724429069523,0.02647287,61578.0,61577.0,1.20629698]
[1724429070196,0.02647287,61578.0,61577.0,2.18068498]
[1724429070409,0.07290637,61598.0,61597.0,0.002]
[1724429070655,0.54093058,61599.0,61598.0,0.002]
[1724429070879,0.0009053,61600.0,61599.0,0.001]
[1724429070880,0.04954434,61600.0,61599.0,0.001]
[1724429071358,0.02636896,61600.0,61599.0,0.001]
[1724429071787,0.075008,61600.0,61599.0,0.001]
[1724429071993,0.02636896,61600.0,61599.0,0.001]
[1724429072677,0.02636896,61600.0,61596.0,0.002]
[1724429072678,0.02936896,61600.0,61596.0,0.002]
[1724429073118,0.02936896,61600.0,61596.0,0.05189]
[1724429073337,0.02936896,61600.0,61592.0,0.3157]
[1724429073338,0.19170796,61600.0,61592.0,0.3157]
[1724429073558,0.2413178,61600.0,61592.0,0.3157]
[1724429073768,0.03036896,61600.0,61596.0,0.002]
[1724429074018,0.0779788,61600.0,61596.0,0.002]
[1724429074447,0.02836896,61600.0,61596.0,0.002]
[1724429074869,0.03136896,61600.0,61596.0,0.002]
[1724429077494,0.03136896,61600.0,61597.0,0.3233]
[1724429077972,0.03136896,61600.0,61597.0,0.32317474]
[1724429078611,0.02836896,61600.0,61597.0,0.32317474]
[1724429079066,0.03136896,61600.0,61599.0,0.1829]
[1724429079710,0.02936896,61600.0,61599.0,0.1829]
[1724429079913,0.02936896,61600.0,61599.0,0.23350747]
[1724429080121,0.03036896,61600.0,61599.0,0.23350747]
[1724429080537,0.02936896,61600.0,61599.0,0.23350747]
[1724429080980,0.03036896,61600.0,61599.0,0.23350747]
[1724429081415,0.03036896,61600.0,61599.0,0.496]
[1724429081616,0.02736896,61600.0,61599.0,0.496]
[1724429081824,0.03036896,61600.0,61599.0,0.496]
[1724429082035,0.03036896,61600.0,61599.0,0.49593187]
[1724429082239,0.02736896,61600.0,61599.0,0.49593187]
[1724429082443,0.02736896,61600.0,61599.0,0.54552506]
[1724429082655,0.02736896,61600.0,61599.0,0.54752506]
[1724429082855,0.02636896,61600.0,61599.0,0.54752506]
[1724429083074,0.02636896,61600.0,61599.0,0.55152506]
[1724429083295,0.02636896,61600.0,61599.0,0.55452506]
[1724429083513,0.02636896,61600.0,61599.0,0.54852506]
[1724429084382,0.02636896,61600.0,61599.0,0.54552506]
[1724429084819,0.02736896,61600.0,61599.0,0.55252506]
[1724429085015,0.02736896,61600.0,61599.0,0.71452804]
[1724429085228,0.02736896,61600.0,61599.0,0.87686804]
[1724429085447,0.02736896,61600.0,61599.0,0.71852804]
[1724429085684,0.02736896,61600.0,61599.0,0.88086804]
[1724429085950,0.02736896,61600.0,61599.0,0.71852804]
[1724429086612,0.02736896,61600.0,61599.0,0.71841]
[1724429088645,0.02736896,61600.0,61599.0,0.55440702]
[1724429089338,0.02736896,61600.0,61599.0,0.71841]
[1724429090935,0.02736896,61600.0,61599.0,0.88075]
[1724429091148,0.02736896,61600.0,61599.0,1.04296698]
[1724429091367,0.0019053,61600.0,61599.0,0.88062698]
[1724429092720,0.0019053,61600.0,61599.0,1.20530698]
[1724429092957,0.0019053,61600.0,61599.0,1.52998698]
[1724429093206,0.0019053,61600.0,61599.0,1.97766698]
[1724429093644,0.0019053,61600.0,61599.0,1.98066698]
[1724429093855,0.0019053,61600.0,61599.0,1.30530698]
[1724429094074,0.0009053,61600.0,61599.0,0.97562698]
[1724429094294,0.0009053,61600.0,61599.0,1.30930698]
[1724429094295,0.0019053,61600.0,61599.0,1.30930698]
[1724429094538,0.0019053,61600.0,61599.0,0.50869081]
[1724429094775,0.02736403,61600.0,61599.0,0.01369081]
[1724429095010,0.02736403,61600.0,61599.0,0.01069081]
[1724429095443,0.02836403,61600.0,61599.0,0.01869081]
[1724429095700,0.02736403,61600.0,61599.0,0.01069081]
[1724429095911,0.02636403,61600.0,61599.0,0.012]
[1724429096112,0.02736403,61600.0,61599.0,0.01769081]
[1724429096340,0.02736403,61600.0,61599.0,0.016]
[1724429096549,0.02636403,61600.0,61598.0,0.00169081]
[1724429096756,0.02636403,61600.0,61599.0,0.00169081]
[1724429096993,0.02936403,61600.0,61599.0,0.00169081]
[1724429097206,0.02936403,61600.0,61599.0,0.05393989]
[1724429097419,0.02836403,61600.0,61599.0,0.05393989]
[1724429097640,0.3179,61606.0,61601.0,0.001]
[1724429098089,0.3179,61606.0,61600.0,0.03163597]
[1724429098268,0.02546205,61605.0,61600.0,0.03163597]
[1724429098483,0.02546205,61605.0,61601.0,0.00855759]
[1724429098926,0.02546205,61605.0,61601.0,0.0102484]
[1724429099140,0.02546205,61605.0,61601.0,0.0112484]
[1724429099364,0.18778705,61605.0,61601.0,0.00855759]
[1724429099575,0.162335,61601.0,61600.0,0.03163597]
[1724429099803,1.301875,61601.0,61600.0,0.03163597]
[1724429100018,1.626545,61601.0,61600.0,0.03163597]
[1724429100238,1.86440569,61601.0,61600.0,0.03163597]
[1724429100467,1.56587798,61601.0,61600.0,0.03163597]
[1724429100906,1.59129018,61601.0,61600.0,0.03163597]
[1724429101122,0.6156122,61601.0,61600.0,0.03163597]
[1724429101352,0.162331,61603.0,61600.0,0.03163597]
[1724429101593,0.36466205,61605.0,61600.0,0.05378865]
[1724429101594,0.002,61601.0,61600.0,0.05378865]
[1724429101810,0.002,61601.0,61600.0,0.37628865]
[1724429102026,0.005,61601.0,61600.0,0.03163597]
[1724429102253,0.495535,61601.0,61600.0,0.03163597]
[1724429102471,0.820205,61601.0,61600.0,0.03163597]
[1724429102676,0.820205,61601.0,61600.0,0.03263597]
[1724429102677,0.495535,61601.0,61600.0,0.03263597]
[1724429102880,0.493535,61601.0,61600.0,0.03163597]
[1724429103332,0.502535,61601.0,61600.0,0.03263597]
[1724429103568,0.499535,61601.0,61600.0,0.03263597]
[1724429103775,0.493535,61601.0,61600.0,0.03163597]
[1724429104198,0.657735,61601.0,61600.0,0.03163597]
[1724429104409,0.982405,61601.0,61600.0,0.03163597]
[1724429104618,0.980405,61601.0,61600.0,0.03163597]
[1724429104830,1.0058156,61601.0,61600.0,0.03163597]
[1724429105048,1.0158156,61601.0,61600.0,0.03263597]
[1724429105252,1.0118156,61601.0,61600.0,0.03263597]
[1724429105487,1.17581858,61601.0,61600.0,0.03263597]
[1724429105698,1.0188156,61601.0,61600.0,0.03363597]
[1724429105908,0.993405,61601.0,61600.0,0.03363597]
[1724429106336,0.831205,61601.0,61600.0,0.03363597]
[1724429106550,0.500005,61601.0,61600.0,0.03363597]
[1724429106983,0.013,61601.0,61600.0,0.03363597]
[1724429108046,0.02366205,61605.0,61600.0,0.03363597]
[1724429108264,0.18598605,61605.0,61600.0,0.03363597]
[1724429108484,0.324656,61604.0,61600.0,0.03363597]
[1724429108946,0.162335,61601.0,61600.0,0.03263597]
[1724429109363,0.21082043,61603.0,61600.0,0.03263597]
[1724429109581,0.04848943,61602.0,61600.0,0.03263597]
[1724429109811,0.04848943,61602.0,61600.0,0.03363597]
[1724429110034,0.04848943,61602.0,61600.0,0.03263597]
[1724429110035,0.21082243,61602.0,61600.0,0.03263597]
[1724429110233,0.162333,61602.0,61600.0,0.03263597]
[1724429110601,0.04848943,61604.0,61600.0,0.03363597]
[1724429110820,0.04848943,61604.0,61600.0,0.03432678]
[1724429111075,0.04848943,61604.0,61600.0,0.03263597]
[1724429111265,0.006,61602.0,61600.0,0.03263597]
[1724429111742,0.006,61602.0,61600.0,0.03363597]
[1724429111961,0.003,61603.0,61600.0,0.03163597]
[1724429111962,0.04848943,61603.0,61600.0,0.03163597]
[1724429112177,0.04848943,61603.0,61600.0,0.03263597]
[1724429112387,0.04848943,61602.0,61600.0,0.03263597]
[1724429112613,0.05172834,61602.0,61600.0,0.03163597]
[1724429112836,0.162335,61601.0,61600.0,0.03263597]
[1724429113048,0.162335,61601.0,61600.0,0.03163597]
[1724429113488,0.162335,61601.0,61594.0,0.51129081]
[1724429113489,0.162338,61600.0,61594.0,0.51129081]
[1724429113711,0.162338,61600.0,61595.0,0.05122908]
[1724429113712,0.04861995,61599.0,61595.0,0.05122908]
[1724429113938,0.23526793,61600.0,61595.0,0.05122908]
[1724429113939,0.21095795,61600.0,61595.0,0.05122908]
[1724429114625,0.04861995,61598.0,61595.0,0.05122908]
[1724429115064,0.05361995,61599.0,61595.0,0.05122908]
[1724429115277,0.05361995,61599.0,61596.0,0.05635199]
[1724429115503,0.09723956,61602.0,61596.0,0.05635199]
[1724429115504,0.07408595,61598.0,61596.0,0.05635199]
[1724429115723,0.07408595,61598.0,61594.0,0.51229081]
[1724429115724,0.07408595,61598.0,61594.0,0.51129081]
[1724429115936,0.04861995,61597.0,61594.0,0.51129081]
[1724429116176,0.04861995,61597.0,61594.0,0.51229081]
[1724429116859,0.025466,61598.0,61597.0,0.30399081]
[1724429117093,0.025466,61598.0,61597.0,0.35313989]
[1724429117312,0.025466,61598.0,61597.0,0.53733989]
[1724429117745,0.187808,61598.0,61597.0,0.4865]
[1724429117966,0.028466,61598.0,61592.0,0.00169081]
[1724429118205,0.04863813,61597.0,61592.0,0.00169081]
[1724429118418,0.027466,61598.0,61593.0,0.04881908]
[1724429118627,0.025466,61598.0,61595.0,0.00069081]
[1724429118836,0.025466,61598.0,61595.0,0.00169081]
[1724429118837,0.04863813,61597.0,61595.0,0.00169081]
[1724429119053,0.04863813,61597.0,61595.0,0.00069081]
[1724429119264,0.09839593,61598.0,61595.0,0.00069081]
[1724429119265,0.04863813,61596.0,61595.0,0.00069081]
[1724429119479,0.07292993,61597.0,61595.0,0.00069081]
[1724429119684,0.04863788,61596.0,61595.0,0.0553918]
[1724429119897,0.04863788,61597.0,61595.0,0.00069081]
[1724429120113,0.04863788,61596.0,61595.0,0.00069081]
[1724429120546,0.05187679,61596.0,61590.0,0.4865]
[1724429120761,0.04863859,61593.0,61590.0,0.4865]
[1724429120966,0.04863781,61593.0,61590.0,0.4865]
[1724429121173,0.04863781,61594.0,61590.0,0.4865]
[1724429121401,0.04863781,61594.0,61579.0,0.00458275]
[1724429121402,0.162359,61592.0,61586.0,0.50769081]
[1724429121620,0.324707,61594.0,61586.0,0.50769081]
[1724429121621,0.162363,61591.0,61587.0,0.05086908]
[1724429121852,0.52377354,61590.0,61578.0,0.507]
[1724429122065,0.09729477,61580.0,61573.0,0.5158]
[1724429122280,0.04864707,61578.0,61577.0,0.00069081]
[1724429122521,0.0486214,61578.0,61577.0,0.00069081]
[1724429122735,0.04862059,61582.0,61581.0,0.1959]
[1724429122952,0.04862059,61584.0,61583.0,0.00169081]
[1724429123169,0.1458642,61594.0,61581.0,0.34764908]
[1724429123170,0.12153423,61592.0,61591.0,0.3199]
[1724429123383,0.0486099,61592.0,61591.0,0.32159081]
[1724429123630,0.12153423,61597.0,61591.0,0.37333989]
[1724429123631,0.0486099,61595.0,61591.0,0.37333989]
[1724429123854,0.12153423,61600.0,61591.0,0.37333989]
[1724429123855,0.0254666,61592.0,61591.0,0.37333989]
[1724429124066,0.0254666,61592.0,61591.0,0.56853989]
[1724429124528,0.0254666,61592.0,61591.0,0.73090089]
[1724429124742,0.0254666,61592.0,61591.0,1.54434787]
[1724429124949,0.0254666,61592.0,61591.0,1.54534787]
[1724429124950,0.0314666,61592.0,61591.0,1.54534787]
[1724429125162,0.007,61595.0,61594.0,0.99164981]
[1724429125375,0.04859559,61610.0,61594.0,1.58576052]
[1724429125587,0.04859559,61611.0,61610.0,0.5039]
[1724429126280,0.04859559,61612.0,61611.0,0.001]
[1724429126472,0.04859559,61612.0,61610.0,0.5029]
[1724429126473,0.04859559,61615.0,61612.0,0.00156778]
[1724429126698,0.04859559,61615.0,61610.0,0.5029]